fUST/lending_fUST_20250722
["ID","MTS","AMOUNT","RATE_DAILY","PERIOD"]
[373950220,1753161048153,-396.38,0.00018203,2]
[373950222,1753161048164,-460.0,0.00018204,2]
[373950224,1753161048173,-460.0,0.00018204,2]
[373950226,1753161048182,-460.0,0.00018204,2]
[373950228,1753161048192,-316.98851064,0.00018204,2]
[373950230,1753161048201,-183.07,0.00018204,2]
[373950232,1753161048210,-490.83,0.00018204,2]
[373950234,1753161048220,-704.68,0.00018204,2]
[373950236,1753161048229,-460.0,0.00018205,2]
[373950238,1753161048239,-1488.34,0.00018293,3]
[373950240,1753161048249,-744.16,0.00018293,3]
[373950242,1753161048258,-372.08,0.00018293,3]
[373950244,1753161048268,-839.90542673,0.00018303,2]
[373950246,1753161048277,-12619.94447631,0.00018303,2]
[373950248,1753161048286,-231.06963584,0.00018303,2]
[373950250,1753161048295,-160.0,0.00018303,2]
[373950252,1753161048304,-214.6393183,0.00018303,2]
[373950254,1753161048315,-160.0,0.00018303,2]
[373950256,1753161048324,-215.80012421,0.00018303,2]
[373950258,1753161048334,-526.07605158,0.00018303,2]
[373950260,1753161048343,-476.60259688,0.00018303,2]
[373950262,1753161048353,-160.0,0.00018303,2]
[373950264,1753161048362,-160.0,0.00018303,2]
[373950266,1753161048372,-160.0,0.00018303,2]
[373950268,1753161048382,-460.0,0.00018303,2]
[373950270,1753161048392,-160.0,0.00018303,2]
[373950272,1753161048401,-1427.52,0.00018304,2]
[373950274,1753161048412,-882.06,0.00018304,2]
[373950276,1753161048422,-1311.2,0.00018304,2]
[373950278,1753161048432,-460.0,0.00018304,2]
[373950280,1753161048442,-460.0,0.00018304,2]
[373950282,1753161048451,-460.0,0.00018304,2]
[373950284,1753161048461,-160.0,0.00018305,2]
[373950286,1753161048470,-2082.03,0.00018306,2]
[373950288,1753161048480,-1130.92,0.00018306,2]
[373950290,1753161048490,-472.92,0.00018307,2]
[373950292,1753161048500,-1025.15,0.00018307,2]
[373950294,1753161048510,-460.0,0.00018308,2]
[373950297,1753161048519,-1124.31456011,0.00018355,2]
[373950299,1753161048529,-150.0,0.00018372,2]
[373950301,1753161048538,-301.0,0.00018385,2]
[373950303,1753161048547,-420.0,0.00018385,2]
[373950305,1753161048557,-173.0,0.00018411,3]
[373950306,1753161048566,-485.21267719,0.00018452,2]
[373950309,1753161048576,-895.02,0.00018476,2]
[373950310,1753161048585,-460.0,0.00018476,2]
[373950312,1753161048594,-864.36,0.00018476,2]
[373950314,1753161048603,-460.0,0.00018476,2]
[373950316,1753161048613,-460.0,0.00018476,2]
[373950318,1753161048622,-474.91,0.00018476,2]
[373950320,1753161048631,-460.0,0.00018476,2]
[373950322,1753161048641,-594.31445324,0.00018477,2]
[373950324,1753161048651,-460.0,0.00018477,2]
[373950326,1753161048661,-448.62,0.00018477,2]
[373950328,1753161048674,-460.0,0.00018478,2]
[373950330,1753161048684,-490.83,0.00018478,2]
[373950332,1753161048694,-841.0,0.00018478,2]
[373950335,1753161048704,-704.68,0.00018478,2]
[373950337,1753161048715,-371.681204,0.00018479,2]
[373950339,1753161048724,-460.0,0.00018577,2]
[373950341,1753161048734,-1427.52,0.00018578,2]
[373950343,1753161048745,-882.06,0.00018578,2]
[373950345,1753161048755,-1311.2,0.00018578,2]
[373950347,1753161048764,-583.37,0.00018578,2]
[373950349,1753161048774,-460.0,0.00018578,2]
[373950351,1753161048785,-434.38,0.00018578,2]
[373950353,1753161048794,-2082.03,0.0001858,2]
[373950355,1753161048804,-1130.92,0.0001858,2]
[373950357,1753161048814,-472.92,0.00018581,2]
[373950359,1753161048825,-1025.15,0.00018581,2]
[373950361,1753161048835,-460.0,0.00018582,2]
[373950363,1753161048845,-2157.0,0.00018726,2]
[373950365,1753161048855,-968.0,0.00018726,2]
[373950367,1753161048865,-895.02,0.0001875,2]
[373950369,1753161048875,-460.0,0.0001875,2]
[373950371,1753161048884,-864.36,0.0001875,2]
[373950373,1753161048894,-460.0,0.0001875,2]
[373950375,1753161048904,-188.04,0.0001875,2]
[373950377,1753161048914,-474.91,0.0001875,2]
[373950379,1753161048924,-460.0,0.0001875,2]
[373950381,1753161048933,-460.0,0.00018751,2]
[373950383,1753161048943,-460.0,0.00018752,2]
[373950385,1753161048952,-490.83,0.00018752,2]
[373950387,1753161048962,-704.68,0.00018752,2]
[373950389,1753161048972,-500.0,0.00018753,2]
[373950391,1753161048982,-485.21267719,0.00018762,2]
[373950393,1753161048991,-241.05,0.00018851,2]
[373950395,1753161049000,-1427.52,0.00018852,2]
[373950397,1753161049010,-882.06,0.00018852,2]
[373950399,1753161049020,-1311.2,0.00018852,2]
[373950401,1753161049030,-460.0,0.00018852,2]
[373950403,1753161049039,-260.0,0.00018853,2]
[373950405,1753161049049,-2082.03,0.00018854,2]
[373950407,1753161049059,-1130.92,0.00018854,2]
[373950409,1753161049068,-472.92,0.00018855,2]
[373950411,1753161049079,-1025.15,0.00018855,2]
[373950413,1753161049088,-460.0,0.00018856,2]
[373950415,1753161049098,-1384.98664926,0.00018938,2]
[373950417,1753161049107,-895.02,0.00019024,2]
[373950419,1753161049117,-463.01538314,0.00019024,2]
[373950421,1753161049127,-864.36,0.00019024,2]
[373950423,1753161049136,-460.0,0.00019024,2]
[373950426,1753161049146,-474.91,0.00019024,2]
[373950428,1753161049156,-577.36,0.00019024,2]
[373950430,1753161049166,-460.0,0.00019025,2]
[373950432,1753161049176,-490.83,0.00019026,2]
[373950434,1753161049185,-704.68,0.00019026,2]
[373950436,1753161049195,-485.21267719,0.00019072,2]
[373950438,1753161049204,-648.0,0.00019098,2]
[373950440,1753161049214,-1427.52,0.00019126,2]
[373950442,1753161049224,-882.06,0.00019126,2]
[373950444,1753161049233,-1311.2,0.00019126,2]
[373950446,1753161049243,-460.0,0.00019126,2]
[373950448,1753161049252,-2082.03,0.00019128,2]
[373950450,1753161049262,-1130.92,0.00019128,2]
[373950452,1753161049271,-472.92,0.00019129,2]
[373950454,1753161049281,-1025.15,0.00019129,2]
[373950456,1753161049291,-460.0,0.0001913,2]
[373950458,1753161049301,-430.046328,0.00019178,2]
[373950460,1753161049311,-895.02,0.00019298,2]
[373950462,1753161049320,-864.36,0.00019298,2]
[373950464,1753161049330,-460.0,0.00019298,2]
[373950466,1753161049339,-474.91,0.00019298,2]
[373950468,1753161049349,-460.0,0.00019299,2]
[373950470,1753161049358,-490.83,0.000193,2]
[373950472,1753161049367,-704.68,0.000193,2]
[373950474,1753161049378,-330.0,0.00019321,3]
[373950477,1753161049387,-315.54842336,0.00019329,2]
[373950479,1753161049397,-65026.40200567,0.00019329,2]
[373950481,1753161049407,-158.26022645,0.00019373,2]
[373950483,1753161049417,-500.0,0.00019373,2]
[373950485,1753161049427,-309.14077496,0.00019373,2]
[373950487,1753161049436,-158.25881415,0.00019373,2]
[373950489,1753161049446,-158.25536882,0.00019373,2]
[373950491,1753161049456,-233.29956809,0.00019373,2]
[373950493,1753161049465,-500.0,0.00019373,2]
[373950495,1753161049475,-500.0,0.00019373,2]
[373950497,1753161049484,-500.0,0.00019373,2]
[373950499,1753161049494,-500.0,0.00019373,2]
[373950501,1753161049503,-500.0,0.00019373,2]
[373950503,1753161049513,-500.0,0.00019373,2]
[373950505,1753161049522,-406.32816737,0.00019373,2]
[373950507,1753161049533,-500.98278549,0.00019373,2]
[373950509,1753161049542,-500.0,0.00019373,2]
[373950511,1753161049552,-500.0,0.00019373,2]
[373950513,1753161049561,-500.0,0.00019373,2]
[373950515,1753161049571,-500.0,0.00019373,2]
[373950517,1753161049580,-502.91141735,0.00019373,2]
[373950519,1753161049590,-500.0,0.00019373,2]
[373950521,1753161049599,-500.0,0.00019373,2]
[373950523,1753161049608,-485.21267719,0.00019383,2]
[373950525,1753161049618,-1427.52,0.000194,2]
[373950527,1753161049628,-882.06,0.000194,2]
[373950529,1753161049637,-1311.2,0.000194,2]
[373950531,1753161049647,-460.0,0.000194,2]
[373950533,1753161049657,-360.0,0.00019401,2]
[373950535,1753161049670,-2082.03,0.00019402,2]
[373950537,1753161049680,-1130.92,0.00019402,2]
[373950539,1753161049690,-472.92,0.00019403,2]
[373950541,1753161049700,-1025.15,0.00019403,2]
[373950543,1753161049710,-460.0,0.00019404,2]
[373950545,1753161049721,-895.02,0.00019572,2]
[373950547,1753161049730,-864.36,0.00019572,2]
[373950549,1753161049740,-460.0,0.00019572,2]
[373950551,1753161049752,-474.91,0.00019572,2]
[373950553,1753161049761,-460.0,0.00019573,2]
[373950555,1753161049771,-490.83,0.00019574,2]
[373950557,1753161049781,-704.68,0.00019574,2]
[373950559,1753161049790,-215.0738,0.00019615,2]
[373950561,1753161049800,-1427.52,0.00019674,2]
[373950563,1753161049810,-882.06,0.00019674,2]
[373950565,1753161049819,-1311.2,0.00019674,2]
[373950567,1753161049829,-599.96,0.00019674,2]
[373950569,1753161049840,-2082.03,0.00019676,2]
[373950571,1753161049849,-1130.92,0.00019676,2]
[373950573,1753161049860,-472.92,0.00019677,2]
[373950575,1753161049869,-1025.15,0.00019677,2]
[373950577,1753161049880,-460.0,0.00019678,2]
[373950579,1753161049890,-485.21267719,0.00019693,2]
[373950581,1753161049899,-1124.31456011,0.00019704,2]
[373950584,1753161049910,-500.0,0.0001974,2]
[373950586,1753161049920,-330.0,0.00019819,3]
[373950588,1753161049930,-895.02,0.00019846,2]
[373950589,1753161049940,-864.36,0.00019846,2]
[373950591,1753161049950,-460.0,0.00019846,2]
[373950593,1753161049959,-474.91,0.00019846,2]
[373950595,1753161049969,-387.6041213,0.00019847,2]
[373950597,1753161049978,-490.83,0.00019848,2]
[373950599,1753161049988,-704.68,0.00019848,2]
[373950601,1753161049998,-306.1586121,0.00019884,2]
[373950603,1753161050007,-873.52190966,0.00019921,2]
[373950605,1753161050017,-1000.0,0.00019921,2]
[373950607,1753161050026,-1427.52,0.00019948,2]
[373950609,1753161050036,-882.06,0.00019948,2]
[373950611,1753161050045,-1311.2,0.00019948,2]
[373950613,1753161050055,-460.0,0.00019949,2]
[373950615,1753161050065,-2082.03,0.0001995,2]
[373950617,1753161050075,-1130.92,0.0001995,2]
[373950619,1753161050085,-472.92,0.00019951,2]
[373950621,1753161050095,-1025.15,0.00019951,2]
[373950623,1753161050106,-460.0,0.00019952,2]
[373950625,1753161050115,-429.6101251,0.00019991,2]
[373950627,1753161050126,-429.6101251,0.00019991,2]
[373950629,1753161050136,-429.6101251,0.00019991,2]
[373950631,1753161050146,-485.21267719,0.00020003,2]
[373950633,1753161050156,-150.0,0.00020033,2]
[373950636,1753161050166,-500.0,0.00020057,2]
[373950638,1753161050176,-587.0,0.00020084,2]
[373950640,1753161050186,-895.02,0.0002012,2]
[373950642,1753161050195,-864.36,0.0002012,2]
[373950644,1753161050206,-460.0,0.0002012,2]
[373950646,1753161050216,-474.91,0.0002012,2]
[373950648,1753161050226,-490.83,0.00020122,2]
[373950650,1753161050236,-704.68,0.00020122,2]
[373950652,1753161050246,-259.453283,0.00020187,2]
[373950653,1753161050256,-151.0,0.000202,3]
[373950655,1753161050265,-1427.52,0.00020222,2]
[373950657,1753161050275,-882.06,0.00020222,2]
[373950659,1753161050284,-1311.2,0.00020222,2]
[373950661,1753161050294,-2082.03,0.00020224,2]
[373950663,1753161050303,-1130.92,0.00020224,2]
[373950665,1753161050313,-472.92,0.00020225,2]
[373950667,1753161050323,-1025.15,0.00020225,2]
[373950669,1753161050333,-460.0,0.00020226,2]
[373950671,1753161050343,-485.21267719,0.00020314,3]
[373950672,1753161050352,-330.0,0.00020317,4]
[373950673,1753161050361,-895.02,0.00020394,2]
[373950674,1753161050370,-864.36,0.00020394,2]
[373950675,1753161050380,-460.0,0.00020394,2]
[373950676,1753161050389,-474.91,0.00020394,2]
[373950677,1753161050399,-490.83,0.00020396,2]
[373950678,1753161050409,-704.68,0.00020396,2]
[373950679,1753161050418,-506.69636249,0.00020468,2]
[373950680,1753161050427,-1427.52,0.00020496,2]
[373950681,1753161050436,-882.06,0.00020496,2]
[373950682,1753161050446,-1311.2,0.00020496,2]
[373950683,1753161050455,-560.0,0.00020497,2]
[373950684,1753161050465,-2082.03,0.00020498,2]
[373950685,1753161050475,-1130.92,0.00020498,2]
[373950686,1753161050484,-472.92,0.00020499,2]
[373950687,1753161050494,-1025.15,0.00020499,2]
[373950688,1753161050503,-460.0,0.000205,2]
[373950689,1753161050512,-168.0,0.00020528,2]
[373950690,1753161050521,-500.0,0.00020547,2]
[373950691,1753161050532,-500.0,0.00020547,2]
[373950692,1753161050542,-500.0,0.00020547,2]
[373950693,1753161050551,-500.0,0.00020547,2]
[373950694,1753161050561,-500.0,0.00020547,2]
[373950695,1753161050570,-500.0,0.00020547,2]
[373950696,1753161050580,-500.0,0.00020547,2]
[373950697,1753161050589,-500.0,0.00020547,2]
[373950698,1753161050599,-500.0,0.00020547,2]
[373950699,1753161050608,-501.98,0.00020547,2]
[373950700,1753161050618,-500.0,0.00020547,2]
[373950701,1753161050627,-500.0,0.00020547,2]
[373950702,1753161050637,-500.0,0.00020547,2]
[373950703,1753161050647,-500.0,0.00020547,2]
[373950704,1753161050657,-485.21267719,0.00020624,3]
[373950705,1753161050673,-895.02,0.00020668,2]
[373950706,1753161050682,-864.36,0.00020668,2]
[373950707,1753161050692,-189.70476314,0.00020668,2]
[373950708,1753161050702,-474.91,0.00020668,2]
[373950709,1753161050713,-490.83,0.0002067,2]
[373950710,1753161050723,-704.68,0.0002067,2]
[373950711,1753161050733,-153.0,0.00020685,2]
[373950712,1753161050743,-2783.91915657,0.000207,2]
[373950713,1753161050754,-151.0,0.000207,3]
[373950714,1753161050764,-168.0,0.00020741,2]
[373950715,1753161050774,-577.4526085,0.0002075,2]
[373950716,1753161050784,-159.8125085,0.0002075,2]
[373950717,1753161050793,-577.4526085,0.0002075,2]
[373950718,1753161050803,-320.1619905,0.0002075,2]
[373950719,1753161050812,-988.122,0.00020755,2]
[373950721,1753161050823,-178.70934786,0.00020755,2]
[373950723,1753161050833,-1427.52,0.0002077,2]
[373950724,1753161050843,-882.06,0.0002077,2]
[373950725,1753161050854,-1311.2,0.0002077,2]
[373950726,1753161050864,-2082.03,0.00020772,2]
[373950727,1753161050873,-1130.92,0.00020772,2]
[373950728,1753161051013,-472.92,0.00020773,2]
[373950729,1753161051023,-1025.15,0.00020773,2]
[373950730,1753161051032,-460.0,0.00020774,2]
[373950731,1753161051042,-500.0,0.00020779,2]
[373950732,1753161051051,-282.64186,0.00020795,8]
[373950733,1753161051060,-300.14083341,0.00020806,5]
[373950734,1753161051070,-330.0,0.00020815,4]
[373950735,1753161051080,-168.0,0.00020816,2]
[373950736,1753161051090,-1269.12575618,0.000209,2]
[373950737,1753161051099,-485.21267719,0.00020934,4]
[373950738,1753161051109,-895.02,0.00020942,2]
[373950739,1753161051119,-864.36,0.00020942,2]
[373950740,1753161051128,-474.91,0.00020942,2]
[373950741,1753161051138,-490.83,0.00020944,2]
[373950742,1753161051147,-704.68,0.00020944,2]
[373950743,1753161051157,-262.2261764,0.0002095,2]
[373950744,1753161051169,-429.6101251,0.0002095,2]
[373950745,1753161051178,-429.6101251,0.0002095,2]
[373950746,1753161051188,-429.6101251,0.0002095,2]
[373950747,1753161051197,-429.6101251,0.0002095,2]
[373950748,1753161051207,-429.6101251,0.0002095,2]
[373950749,1753161051216,-429.6101251,0.0002095,2]
[373950750,1753161051227,-429.6101251,0.0002095,2]
[373950751,1753161051237,-429.6101251,0.0002095,2]
[373950752,1753161051246,-168.0,0.00020983,2]
[373950753,1753161051256,-223.0315306,0.00020984,2]
[373950754,1753161051265,-1427.52,0.00021044,2]
[373950755,1753161051274,-882.06,0.00021044,2]
[373950756,1753161051284,-1311.2,0.00021044,2]
[373950757,1753161051294,-660.0,0.00021045,2]
[373950758,1753161051303,-2082.03,0.00021046,2]
[373950760,1753161051313,-1130.92,0.00021046,2]
[373950762,1753161051322,-472.92,0.00021047,2]
[373950763,1753161051331,-1025.15,0.00021047,2]
[373950765,1753161051342,-460.0,0.00021048,2]
[373950767,1753161051352,-1124.31456011,0.00021052,2]
[373950769,1753161051362,-9046.24057448,0.00021052,2]
[373950771,1753161051371,-214.6393183,0.000211,7]
[373950773,1753161051382,-476.60259688,0.000211,7]
[373950775,1753161051391,-12619.94447631,0.000211,7]
[373950777,1753161051401,-160.0,0.000211,7]
[373950779,1753161051412,-168.0,0.00021105,2]
[373950781,1753161051422,-168.0,0.00021108,2]
[373950783,1753161051431,-250.0,0.00021113,2]
[373950785,1753161051440,-168.0,0.00021127,2]
[373950787,1753161051450,-12500.0,0.0002113,7]
[373950789,1753161051460,-12348.06403054,0.00021142,7]
[373950791,1753161051470,-895.02,0.00021216,2]
[373950793,1753161051479,-864.36,0.00021216,2]
[373950795,1753161051488,-474.91,0.00021216,2]
[373950797,1753161051497,-490.83,0.00021218,2]
[373950798,1753161051506,-704.68,0.00021218,2]
[373950800,1753161051516,-485.21267719,0.00021245,4]
[373950802,1753161051525,-152.517526,0.00021273,3]
[373950803,1753161051534,-500.0,0.00021285,2]
[373950804,1753161051544,-330.0,0.00021313,4]
[373950805,1753161051553,-1427.52,0.00021318,2]
[373950806,1753161051562,-882.06,0.00021318,2]
[373950807,1753161051572,-1311.2,0.00021318,2]
[373950808,1753161051582,-2082.03,0.0002132,2]
[373950809,1753161051591,-1130.92,0.0002132,2]
[373950810,1753161051600,-472.92,0.00021321,2]
[373950811,1753161051610,-1025.15,0.00021321,2]
[373950812,1753161051619,-460.0,0.00021322,2]
[373950813,1753161051629,-151.0,0.000214,4]
[373950814,1753161051638,-168.0,0.00021439,2]
[373950815,1753161051648,-152.517526,0.00021477,4]
[373950816,1753161051658,-895.02,0.0002149,2]
[373950817,1753161051678,-864.36,0.0002149,2]
[373950818,1753161051688,-474.91,0.0002149,2]
[373950819,1753161051698,-168.0,0.00021491,2]
[373950820,1753161051708,-490.83,0.00021492,2]
[373950821,1753161051719,-704.68,0.00021492,2]
[373950822,1753161051729,-168.0,0.00021496,2]
[373950823,1753161051739,-168.0,0.00021498,2]
[373950824,1753161051750,-1519.148396,0.000215,2]
[373950825,1753161051760,-152.517526,0.00021515,2]
[373950826,1753161051769,-485.21267719,0.00021555,5]
[373950828,1753161051779,-356.2230728,0.00021572,2]
[373950830,1753161051788,-168.0,0.00021576,2]
[373950832,1753161051798,-573.75015941,0.00021592,2]
[373950842,1753161051892,-390.55386598,0.00021592,2]
[373951341,1753161245693,170.70320484,0.00024657,60]
[373951342,1753161246823,152.517527,0.0002254,30]
[373951349,1753161670730,233.507954,0.00013699,2]
[373951351,1753161688879,184.00853,0.00015853,2]
[373951353,1753161900403,152.517527,0.0002254,30]
[373951392,1753162232404,-300.0,0.00016828,2]
[373951393,1753162232414,-1200.0,0.00016828,2]
[373951394,1753162232424,-460.0,0.00016829,2]
[373951395,1753162232433,-460.0,0.00016829,2]
[373951396,1753162232443,-460.0,0.00016829,2]
[373951397,1753162232452,-460.0,0.00016829,2]
[373951398,1753162232462,-460.0,0.00016829,2]
[373951399,1753162232471,-460.0,0.00016829,2]
[373951400,1753162232481,-460.0,0.00016829,2]
[373951401,1753162232491,-460.0,0.00016829,2]
[373951402,1753162232501,-460.0,0.00016829,2]
[373951403,1753162232510,-460.0,0.00016829,2]
[373951404,1753162232519,-466.10827602,0.00016829,2]
[373951405,1753162232529,-460.0,0.0001683,2]
[373951406,1753162232538,-66.84971027,0.0001683,2]
[373951427,1753162238289,-460.0,0.00016829,2]
[373951429,1753162238299,-460.0,0.00016829,2]
[373951431,1753162238309,-393.15028973,0.0001683,2]
[373951433,1753162238318,-460.0,0.0001683,2]
[373951435,1753162238328,-460.0,0.0001683,2]
[373951437,1753162238337,-460.0,0.0001683,2]
[373951439,1753162238347,-460.0,0.0001683,2]
[373951441,1753162238357,-460.0,0.0001683,2]
[373951443,1753162238367,-460.0,0.0001683,2]
[373951445,1753162238376,-460.0,0.0001683,2]
[373951447,1753162238386,-461.72335912,0.0001683,2]
[373951449,1753162238395,-460.0,0.0001683,2]
[373951451,1753162238405,-460.0,0.0001683,2]
[373951453,1753162238415,-460.0,0.0001683,2]
[373951455,1753162238424,-462.30044154,0.0001683,2]
[373951457,1753162238434,-460.0,0.0001683,2]
[373951459,1753162238444,-266.74900758,0.0001683,2]
[373951672,1753162240674,-295.86512374,0.0001683,2]
[373951674,1753162240684,-460.0,0.0001683,2]
[373951676,1753162240694,-460.0,0.0001683,2]
[373951678,1753162240703,-460.0,0.0001683,2]
[373951680,1753162240716,-460.0,0.0001683,2]
[373951682,1753162240725,-460.0,0.0001683,2]
[373951684,1753162240735,-460.0,0.0001683,2]
[373951686,1753162240744,-418.81516423,0.0001683,2]
[373951688,1753162240754,-460.0,0.0001683,2]
[373951690,1753162240763,-460.0,0.0001683,2]
[373951692,1753162240773,-460.0,0.0001683,2]
[373951694,1753162240782,-460.0,0.0001683,2]
[373951696,1753162240792,-460.0,0.0001683,2]
[373951698,1753162240801,-460.0,0.0001683,2]
[373951700,1753162240811,-460.0,0.0001683,2]
[373951702,1753162240820,-460.0,0.0001683,2]
[373951704,1753162240829,-460.0,0.0001683,2]
[373951706,1753162240839,-460.0,0.0001683,2]
[373951708,1753162240848,-460.0,0.0001683,2]
[373951710,1753162240858,-460.0,0.0001683,2]
[373951712,1753162240867,-460.0,0.0001683,2]
[373951714,1753162240876,-360.55899651,0.0001683,2]
[373951716,1753162240886,-460.0,0.0001683,2]
[373951718,1753162240895,-460.0,0.0001683,2]
[373951720,1753162240904,-460.0,0.0001683,2]
[373951722,1753162240914,-460.0,0.0001683,2]
[373951724,1753162240923,-460.0,0.0001683,2]
[373951726,1753162240932,-557.01906639,0.0001683,2]
[373951728,1753162240944,-460.0,0.0001683,2]
[373951730,1753162240953,-460.0,0.0001683,2]
[373951732,1753162240963,-460.0,0.0001683,2]
[373951734,1753162240973,-460.0,0.0001683,2]
[373951736,1753162240984,-460.0,0.0001683,2]
[373951738,1753162240994,-460.0,0.0001683,2]
[373951741,1753162241003,-460.0,0.0001683,2]
[373951743,1753162241013,-460.0,0.0001683,2]
[373951744,1753162241022,-460.0,0.0001683,2]
[373951746,1753162241032,-460.0,0.0001683,2]
[373951749,1753162241041,-460.0,0.0001683,2]
[373951750,1753162241051,-460.0,0.0001683,2]
[373951752,1753162241061,-460.0,0.0001683,2]
[373951754,1753162241070,-460.0,0.0001683,2]
[373951756,1753162241079,-1095.88,0.0001683,2]
[373951758,1753162241089,-460.0,0.0001683,2]
[373951760,1753162241098,-460.0,0.0001683,2]
[373951763,1753162241109,-460.0,0.0001683,2]
[373951764,1753162241118,-460.0,0.0001683,2]
[373951767,1753162241127,-460.0,0.0001683,2]
[373951769,1753162241137,-460.0,0.0001683,2]
[373951770,1753162241147,-460.0,0.0001683,2]
[373951773,1753162241157,-460.0,0.0001683,2]
[373951775,1753162241166,-460.0,0.0001683,2]
[373951776,1753162241176,-460.0,0.0001683,2]
[373951778,1753162241185,-460.0,0.0001683,2]
[373951780,1753162241195,-460.0,0.0001683,2]
[373951782,1753162241205,-460.0,0.0001683,2]
[373951784,1753162241214,-460.0,0.0001683,2]
[373951787,1753162241224,-460.0,0.0001683,2]
[373951789,1753162241234,-460.0,0.0001683,2]
[373951791,1753162241248,-460.0,0.0001683,2]
[373951793,1753162241258,-460.0,0.0001683,2]
[373951795,1753162241268,-460.0,0.0001683,2]
[373951797,1753162241278,-460.0,0.0001683,2]
[373951799,1753162241288,-460.0,0.0001683,2]
[373951801,1753162241297,-460.0,0.0001683,2]
[373951803,1753162241306,-460.0,0.0001683,2]
[373951805,1753162241315,-460.0,0.0001683,2]
[373951807,1753162241325,-460.0,0.0001683,2]
[373951809,1753162241337,-460.0,0.0001683,2]
[373951812,1753162241347,-460.0,0.0001683,2]
[373951814,1753162241356,-460.0,0.0001683,2]
[373951816,1753162241365,-460.0,0.0001683,2]
[373951818,1753162241377,-460.0,0.0001683,2]
[373951820,1753162241387,-460.0,0.0001683,2]
[373951822,1753162241396,-460.0,0.0001683,2]
[373951824,1753162241406,-460.0,0.0001683,2]
[373951826,1753162241415,-460.0,0.0001683,2]
[373951828,1753162241425,-460.0,0.0001683,2]
[373951830,1753162241434,-460.0,0.0001683,2]
[373951832,1753162241445,-460.0,0.0001683,2]
[373951834,1753162241454,-460.0,0.0001683,2]
[373951836,1753162241464,-460.0,0.0001683,2]
[373951838,1753162241474,-460.0,0.0001683,2]
[373951840,1753162241484,-460.0,0.0001683,2]
[373951842,1753162241493,-460.0,0.0001683,2]
[373951844,1753162241503,-460.0,0.0001683,2]
[373951846,1753162241512,-460.0,0.0001683,2]
[373951848,1753162241522,-460.0,0.0001683,2]
[373951850,1753162241531,-460.0,0.0001683,2]
[373951853,1753162241544,-460.0,0.0001683,2]
[373951855,1753162241553,-460.0,0.0001683,2]
[373951857,1753162241563,-460.0,0.0001683,2]
[373951859,1753162241572,-578.42,0.0001683,2]
[373951861,1753162241581,-460.0,0.0001683,2]
[373951863,1753162241590,-460.0,0.0001683,2]
[373951865,1753162241599,-460.0,0.0001683,2]
[373951867,1753162241609,-460.0,0.0001683,2]
[373951869,1753162241618,-500.0,0.0001683,2]
[373951871,1753162241628,-460.0,0.00016831,2]
[373951873,1753162241637,-460.0,0.00016831,2]
[373951875,1753162241646,-460.0,0.00016831,2]
[373951877,1753162241655,-460.0,0.00016831,2]